[Event "*** Titled Tuesday Blitz"]
[Site "Chess.com"]
[Date "2018.10.02"]
[Round "3"]
[White "hurricane7791"]
[Black "sergoy"]
[Result "0-1"]
[WhiteElo "2685"]
[BlackElo "2784"]
[TimeControl "180+2"]
[EndTime "13:34:04 PDT"]
[Termination "sergoy won by resignation"]

1. d4 {[%clk 0:03:01.9]} 1... Nf6 {[%clk 0:03:00.7]} 2. c4 {[%clk 0:03:02]} 2...
e6 {[%clk 0:03:01.9]} 3. Nc3 {[%clk 0:03:03.2]} 3... Bb4 {[%clk 0:03:02.5]} 4.
e3 {[%clk 0:03:04.7]} 4... O-O {[%clk 0:03:03.2]} 5. Bd3 {[%clk 0:03:05.7]} 5...
c5 {[%clk 0:03:04.4]} 6. Nf3 {[%clk 0:03:06.6]} 6... Nc6 {[%clk 0:03:05.2]} 7.
O-O {[%clk 0:03:07.8]} 7... d6 {[%clk 0:03:04.1]} 8. a3 {[%clk 0:03:01.3]} 8...
Bxc3 {[%clk 0:03:02.7]} 9. bxc3 {[%clk 0:03:03.2]} 9... e5 {[%clk 0:03:04.3]}
10. d5 {[%clk 0:03:00.5]} 10... Ne7 {[%clk 0:03:00.3]} 11. e4 {[%clk 0:03:01.6]}
11... b6 {[%clk 0:02:56.9]} 12. Nh4 {[%clk 0:03:02.1]} 12... Ng6 {[%clk
0:02:56.7]} 13. Nf5 {[%clk 0:03:02.9]} 13... Re8 {[%clk 0:02:53.6]} 14. Ne3
{[%clk 0:03:01.1]} 14... Bd7 {[%clk 0:02:48.8]} 15. a4 {[%clk 0:03:01.5]} 15...
a5 {[%clk 0:02:48.8]} 16. g3 {[%clk 0:03:02.8]} 16... Qc8 {[%clk 0:02:45.5]} 17.
f3 {[%clk 0:03:03.8]} 17... Qc7 {[%clk 0:02:34]} 18. Rf2 {[%clk 0:03:05]} 18...
Ne7 {[%clk 0:02:31.3]} 19. Bd2 {[%clk 0:03:05.6]} 19... Rf8 {[%clk 0:02:24.4]}
20. h4 {[%clk 0:02:59.4]} 20... Ne8 {[%clk 0:02:25.5]} 21. f4 {[%clk 0:02:59.2]}
21... f6 {[%clk 0:02:15.5]} 22. h5 {[%clk 0:03:00]} 22... exf4 {[%clk
0:02:06.8]} 23. gxf4 {[%clk 0:02:59.8]} 23... f5 {[%clk 0:02:08.3]} 24. Qc2
{[%clk 0:02:20.3]} 24... fxe4 {[%clk 0:02:08.7]} 25. Bxe4 {[%clk 0:02:22.2]}
25... Nf6 {[%clk 0:02:08.5]} 26. Bd3 {[%clk 0:02:23.7]} 26... Qc8 {[%clk
0:02:03.8]} 27. f5 {[%clk 0:02:20.2]} 27... Nxh5 {[%clk 0:02:02.2]} 28. Rh2
{[%clk 0:02:19.9]} 28... Nf4 {[%clk 0:01:28.3]} 29. f6 {[%clk 0:01:50.2]} 29...
Neg6 {[%clk 0:01:27.7]} 30. fxg7 {[%clk 0:01:45.7]} 30... Kxg7 {[%clk
0:01:26.9]} 31. Be4 {[%clk 0:01:45.9]} 31... Nh3+ {[%clk 0:01:22.2]} 32. Kg2
{[%clk 0:01:39.8]} 32... Qe8 {[%clk 0:00:53]} 33. Bf5 {[%clk 0:01:19.5]} 33...
Bxf5 {[%clk 0:00:43.2]} 34. Nxf5+ {[%clk 0:01:21.4]} 34... Rxf5 {[%clk
0:00:44.8]} 35. Qxf5 {[%clk 0:01:21.8]} 35... Nh4+ {[%clk 0:00:45.7]} 36. Kxh3
{[%clk 0:01:21.7]} 36... Nxf5 {[%clk 0:00:46.9]} 37. Rg1+ {[%clk 0:01:20.7]}
37... Kh8 {[%clk 0:00:46.1]} 38. Bg5 {[%clk 0:01:22.6]} 38... Qh5+ {[%clk
0:00:46.4]} 0-1

[Event "*** Titled Tuesday Blitz"]
[Site "Chess.com"]
[Date "2018.10.02"]
[Round "3"]
[White "Jospem"]
[Black "raviteja81293"]
[Result "1-0"]
[WhiteElo "2745"]
[BlackElo "2571"]
[TimeControl "180+2"]
[EndTime "13:34:16 PDT"]
[Termination "Jospem won by resignation"]

1. e4 {[%clk 0:03:01.9]} 1... c6 {[%clk 0:02:59]} 2. d4 {[%clk 0:03:02.5]} 2...
d5 {[%clk 0:02:57]} 3. Nd2 {[%clk 0:03:03.7]} 3... dxe4 {[%clk 0:02:58.1]} 4.
Nxe4 {[%clk 0:03:05.6]} 4... Bf5 {[%clk 0:02:59.5]} 5. Ng3 {[%clk 0:03:06.6]}
5... Bg6 {[%clk 0:03:00.2]} 6. h4 {[%clk 0:03:08.2]} 6... h6 {[%clk 0:03:01.8]}
7. Nf3 {[%clk 0:03:09.8]} 7... Nf6 {[%clk 0:03:02.2]} 8. Ne5 {[%clk 0:03:08.6]}
8... Bh7 {[%clk 0:03:03.7]} 9. Bd3 {[%clk 0:02:56.8]} 9... Bxd3 {[%clk
0:03:03.7]} 10. Qxd3 {[%clk 0:02:57]} 10... e6 {[%clk 0:03:05.3]} 11. Bd2 {[%clk
0:02:56.7]} 11... Nbd7 {[%clk 0:03:06.8]} 12. f4 {[%clk 0:02:56.8]} 12... c5
{[%clk 0:03:08.4]} 13. O-O-O {[%clk 0:02:46.4]} 13... cxd4 {[%clk 0:03:09]} 14.
Ng6 {[%clk 0:02:40.1]} 14... Rg8 {[%clk 0:03:09.4]} 15. Nxf8 {[%clk 0:02:37.9]}
15... Nxf8 {[%clk 0:03:11]} 16. Bb4 {[%clk 0:02:27.8]} 16... Qd5 {[%clk
0:03:11.5]} 17. Qxd4 {[%clk 0:02:24.6]} 17... Qxd4 {[%clk 0:03:12]} 18. Rxd4
{[%clk 0:02:25.3]} 18... Ng6 {[%clk 0:03:12.7]} 19. f5 {[%clk 0:02:22.9]} 19...
Ne7 {[%clk 0:03:12.8]} 20. fxe6 {[%clk 0:02:19.2]} 20... fxe6 {[%clk 0:03:14.2]}
21. Re1 {[%clk 0:01:59.1]} 21... Nc6 {[%clk 0:03:13.7]} 22. Rc4 {[%clk
0:01:57.4]} 22... Kf7 {[%clk 0:03:06]} 23. Bc3 {[%clk 0:01:58.5]} 23... Rge8
{[%clk 0:03:03]} 24. a4 {[%clk 0:01:59]} 24... Rad8 {[%clk 0:03:00.8]} 25. b3
{[%clk 0:01:58.2]} 25... Rd5 {[%clk 0:02:55.3]} 26. Rf1 {[%clk 0:01:52.1]} 26...
Ke7 {[%clk 0:02:48.2]} 27. Rcf4 {[%clk 0:01:44.4]} 27... Rf8 {[%clk 0:02:29]}
28. Bb2 {[%clk 0:01:37.6]} 28... Ne5 {[%clk 0:02:18.1]} 29. Ba3+ {[%clk
0:01:33.1]} 29... Kf7 {[%clk 0:02:16.5]} 30. Bxf8 {[%clk 0:01:35]} 30... Kxf8
{[%clk 0:02:18.1]} 31. Ne4 {[%clk 0:01:31.2]} 31... Nd7 {[%clk 0:02:19.4]} 32.
Nxf6 {[%clk 0:01:28]} 32... Nxf6 {[%clk 0:02:17.9]} 33. Rc4 {[%clk 0:01:28.4]}
33... Rd7 {[%clk 0:02:17.8]} 34. g4 {[%clk 0:01:27.5]} 34... Ke7 {[%clk
0:02:18.4]} 35. g5 {[%clk 0:01:28.8]} 35... hxg5 {[%clk 0:02:19.9]} 36. hxg5
{[%clk 0:01:30.7]} 36... Nd5 {[%clk 0:02:21.4]} 37. g6 {[%clk 0:01:31.7]} 37...
Nf6 {[%clk 0:02:21.1]} 38. Rcf4 {[%clk 0:01:29.6]} 38... e5 {[%clk 0:02:19.7]}
39. Rf5 {[%clk 0:01:11.5]} 39... Ke6 {[%clk 0:02:19.4]} 40. R5f2 {[%clk
0:01:08.4]} 40... Rd4 {[%clk 0:02:17.2]} 41. Rg2 {[%clk 0:01:01.9]} 41... e4
{[%clk 0:02:15]} 42. Rd1 {[%clk 0:01:02.7]} 42... Rb4 {[%clk 0:02:12.3]} 43. Rd8
{[%clk 0:00:56.9]} 43... Kf5 {[%clk 0:02:12.3]} 44. Rf8 {[%clk 0:00:52.7]} 44...
e3 {[%clk 0:02:11.1]} 45. Rf7 {[%clk 0:00:51.2]} 45... Kf4 {[%clk 0:02:09.3]}
46. Rxf6+ {[%clk 0:00:49.2]} 46... gxf6 {[%clk 0:02:05.8]} 47. g7 {[%clk
0:00:51.1]} 1-0

[Event "*** Titled Tuesday Blitz"]
[Site "Chess.com"]
[Date "2018.10.02"]
[Round "3"]
[White "Last7Samurai"]
[Black "johnathan113"]
[Result "1-0"]
[WhiteElo "2746"]
[BlackElo "2540"]
[TimeControl "180+2"]
[EndTime "13:34:27 PDT"]
[Termination "Last7Samurai won by resignation"]

1. e4 {[%clk 0:03:01.9]} 1... c5 {[%clk 0:02:59.7]} 2. c3 {[%clk 0:03:02.4]}
2... d5 {[%clk 0:02:59.6]} 3. exd5 {[%clk 0:03:04.3]} 3... Qxd5 {[%clk
0:03:01.2]} 4. d4 {[%clk 0:03:06.1]} 4... g6 {[%clk 0:02:54.3]} 5. Nf3 {[%clk
0:03:05.3]} 5... Bg7 {[%clk 0:02:52.7]} 6. Na3 {[%clk 0:03:06.8]} 6... cxd4
{[%clk 0:02:51.2]} 7. Bc4 {[%clk 0:03:07.4]} 7... Qe4+ {[%clk 0:02:47.1]} 8. Be3
{[%clk 0:03:07.9]} 8... Nh6 {[%clk 0:02:12.2]} 9. Nb5 {[%clk 0:03:02]} 9... O-O
{[%clk 0:02:07.2]} 10. cxd4 {[%clk 0:02:58]} 10... Nc6 {[%clk 0:02:00.3]} 11.
Nc3 {[%clk 0:02:58.2]} 11... Qg4 {[%clk 0:01:47.1]} 12. h3 {[%clk 0:02:59.1]}
12... Qh5 {[%clk 0:01:41.2]} 13. O-O {[%clk 0:02:59.6]} 13... Nf5 {[%clk
0:01:38.6]} 14. Re1 {[%clk 0:02:28.2]} 14... Nxe3 {[%clk 0:01:33.1]} 15. Rxe3
{[%clk 0:02:27.4]} 15... b6 {[%clk 0:01:27.2]} 16. d5 {[%clk 0:02:20]} 16... Na5
{[%clk 0:01:25]} 17. Be2 {[%clk 0:02:20.5]} 17... e6 {[%clk 0:00:55.7]} 18. Nd4
{[%clk 0:01:38.5]} 18... Qg5 {[%clk 0:00:56]} 19. dxe6 {[%clk 0:01:36.8]} 19...
Bxe6 {[%clk 0:00:44.7]} 20. Nxe6 {[%clk 0:01:37]} 20... fxe6 {[%clk 0:00:46.6]}
21. Bf3 {[%clk 0:01:23.2]} 21... Rad8 {[%clk 0:00:46.8]} 22. Qe2 {[%clk
0:01:23.6]} 22... h5 {[%clk 0:00:19.7]} 23. Re1 {[%clk 0:01:10.2]} 23... Rf4
{[%clk 0:00:20.5]} 24. Rxe6 {[%clk 0:01:07.8]} 24... Rdf8 {[%clk 0:00:21.8]} 25.
Ne4 {[%clk 0:01:04.5]} 25... Qf5 {[%clk 0:00:18.3]} 26. Nd6 {[%clk 0:00:59.9]}
26... Qg5 {[%clk 0:00:19.7]} 27. Re8 {[%clk 0:00:56.2]} 27... Bd4 {[%clk
0:00:20]} 28. Rxf8+ {[%clk 0:00:52.2]} 28... Rxf8 {[%clk 0:00:21.9]} 29. Qe6+
{[%clk 0:00:50.6]} 29... Kh8 {[%clk 0:00:22.8]} 30. Nf7+ {[%clk 0:00:50.2]}
30... Rxf7 {[%clk 0:00:24.3]} 31. Qxf7 {[%clk 0:00:52.1]} 1-0

[Event "*** Titled Tuesday Blitz"]
[Site "Chess.com"]
[Date "2018.10.02"]
[Round "3"]
[White "Cryptinz"]
[Black "Rashad_Zeynalli"]
[Result "1-0"]
[WhiteElo "2366"]
[BlackElo "2333"]
[TimeControl "180+2"]
[EndTime "13:34:30 PDT"]
[Termination "Cryptinz won by resignation"]

1. d4 {[%clk 0:02:41.9]} 1... f5 {[%clk 0:02:57.9]} 2. Nf3 {[%clk 0:02:38.9]}
2... Nf6 {[%clk 0:02:58]} 3. g3 {[%clk 0:02:40.8]} 3... g6 {[%clk 0:02:55.7]} 4.
Bg2 {[%clk 0:02:42.7]} 4... Bg7 {[%clk 0:02:56]} 5. O-O {[%clk 0:02:44.6]} 5...
O-O {[%clk 0:02:57.5]} 6. c4 {[%clk 0:02:46.2]} 6... d6 {[%clk 0:02:58.9]} 7.
Nc3 {[%clk 0:02:47.3]} 7... Qe8 {[%clk 0:03:00.3]} 8. Re1 {[%clk 0:02:46.7]}
8... Qf7 {[%clk 0:03:00]} 9. b3 {[%clk 0:02:45.3]} 9... Ne4 {[%clk 0:03:00.4]}
10. Bb2 {[%clk 0:02:41.7]} 10... c5 {[%clk 0:02:58.9]} 11. Qc2 {[%clk
0:02:38.9]} 11... Nxc3 {[%clk 0:02:44.5]} 12. Bxc3 {[%clk 0:02:35.9]} 12... Nc6
{[%clk 0:02:28.6]} 13. dxc5 {[%clk 0:02:28.3]} 13... dxc5 {[%clk 0:02:25]} 14.
Ng5 {[%clk 0:02:27.8]} 14... Qe8 {[%clk 0:02:23.5]} 15. Bxg7 {[%clk 0:02:22.9]}
15... Kxg7 {[%clk 0:02:25.4]} 16. Qc3+ {[%clk 0:02:23]} 16... e5 {[%clk
0:02:20.4]} 17. Bxc6 {[%clk 0:02:17.9]} 17... bxc6 {[%clk 0:02:20.3]} 18. Nf3
{[%clk 0:01:53.9]} 18... Kf6 {[%clk 0:02:12]} 19. Qe3 {[%clk 0:01:45.6]} 19...
e4 {[%clk 0:01:49.5]} 20. Qc3+ {[%clk 0:01:45.6]} 20... Kf7 {[%clk 0:01:45.6]}
21. Ne5+ {[%clk 0:01:25.5]} 21... Kg8 {[%clk 0:01:45.9]} 22. Rad1 {[%clk
0:01:24.6]} 22... Be6 {[%clk 0:01:42.4]} 23. Rd6 {[%clk 0:01:23.6]} 23... Rc8
{[%clk 0:01:39.7]} 24. f4 {[%clk 0:01:22.3]} 24... exf3 {[%clk 0:01:13.3]} 25.
exf3 {[%clk 0:01:24.2]} 25... Qe7 {[%clk 0:01:14.2]} 26. Nxg6 {[%clk 0:00:46.7]}
26... hxg6 {[%clk 0:01:12.1]} 27. Rexe6 {[%clk 0:00:46.1]} 27... Qh7 {[%clk
0:00:54.1]} 28. Rxg6+ {[%clk 0:00:44.8]} 28... Kf7 {[%clk 0:00:55.5]} 29. Qf6+
{[%clk 0:00:40.3]} 29... Ke8 {[%clk 0:00:56.1]} 30. Qe5+ {[%clk 0:00:40]} 30...
Qe7 {[%clk 0:00:53.4]} 31. Rge6 {[%clk 0:00:40.8]} 31... Rc7 {[%clk 0:00:52.2]}
32. Rxe7+ {[%clk 0:00:41.1]} 32... Rxe7 {[%clk 0:00:54.1]} 33. Re6 {[%clk
0:00:42.1]} 33... Kf7 {[%clk 0:00:54.3]} 34. Rxe7+ {[%clk 0:00:42.9]} 1-0

[Event "*** Titled Tuesday Blitz"]
[Site "Chess.com"]
[Date "2018.10.02"]
[Round "3"]
[White "chesstatour"]
[Black "m3alam"]
[Result "1-0"]
[WhiteElo "2019"]
[BlackElo "2111"]
[TimeControl "180+2"]
[EndTime "13:34:37 PDT"]
[Termination "chesstatour won by resignation"]

1. c4 {[%clk 0:03:01.9]} 1... c5 {[%clk 0:03:01.9]} 2. Nf3 {[%clk 0:03:01.2]}
2... g6 {[%clk 0:02:58.4]} 3. d4 {[%clk 0:03:01.2]} 3... cxd4 {[%clk 0:02:59.2]}
4. Nxd4 {[%clk 0:03:03.1]} 4... Bg7 {[%clk 0:02:59.9]} 5. Nc3 {[%clk 0:03:04.3]}
5... Nc6 {[%clk 0:03:01]} 6. Nc2 {[%clk 0:03:04.8]} 6... Qa5 {[%clk 0:02:42.2]}
7. Bd2 {[%clk 0:02:50.9]} 7... a6 {[%clk 0:02:36.2]} 8. g3 {[%clk 0:02:49.6]}
8... Nf6 {[%clk 0:02:28.3]} 9. Bg2 {[%clk 0:02:50]} 9... Qh5 {[%clk 0:02:27.7]}
10. e4 {[%clk 0:02:41.7]} 10... Qc5 {[%clk 0:02:03.8]} 11. Qe2 {[%clk
0:02:34.2]} 11... Ne5 {[%clk 0:01:50.4]} 12. b3 {[%clk 0:02:27.9]} 12... d6
{[%clk 0:01:32.3]} 13. Ne3 {[%clk 0:02:05.9]} 13... Nfg4 {[%clk 0:01:09.4]} 14.
O-O {[%clk 0:02:01.7]} 14... Nxe3 {[%clk 0:01:02.1]} 15. Bxe3 {[%clk 0:02:03.6]}
15... Qa5 {[%clk 0:00:56.4]} 16. Rac1 {[%clk 0:02:00.9]} 16... Nf3+ {[%clk
0:00:49.5]} 17. Qxf3 {[%clk 0:01:27.3]} 17... Bxc3 {[%clk 0:00:48.8]} 18. Bb6
{[%clk 0:01:18.3]} 18... Qxb6 {[%clk 0:00:44.2]} 19. Qxc3 {[%clk 0:01:18.5]}
19... O-O {[%clk 0:00:44.2]} 20. c5 {[%clk 0:01:06.7]} 20... dxc5 {[%clk
0:00:36.6]} 21. Qxc5 {[%clk 0:01:08.6]} 21... Qxc5 {[%clk 0:00:20.3]} 22. Rxc5
{[%clk 0:01:08.6]} 22... Rd8 {[%clk 0:00:15.8]} 23. Rc7 {[%clk 0:01:06.2]} 23...
Kf8 {[%clk 0:00:16.8]} 24. Rfc1 {[%clk 0:00:49.2]} 24... e5 {[%clk 0:00:16.2]}
25. Bf1 {[%clk 0:00:43.8]} 25... Rb8 {[%clk 0:00:16.3]} 26. Bc4 {[%clk
0:00:43.6]} 26... Be6 {[%clk 0:00:17.2]} 27. Bxe6 {[%clk 0:00:43.4]} 27... fxe6
{[%clk 0:00:18.7]} 28. Rxh7 {[%clk 0:00:43.2]} 1-0

[Event "*** Titled Tuesday Blitz"]
[Site "Chess.com"]
[Date "2018.10.02"]
[Round "3"]
[White "FMJoseHerrera"]
[Black "severomorskij"]
[Result "0-1"]
[WhiteElo "2501"]
[BlackElo "2699"]
[TimeControl "180+2"]
[EndTime "13:34:38 PDT"]
[Termination "severomorskij won on time"]

1. Nf3 {[%clk 0:03:01.9]} 1... Nf6 {[%clk 0:02:59.3]} 2. g3 {[%clk 0:03:02.5]}
2... d5 {[%clk 0:02:59.9]} 3. Bg2 {[%clk 0:03:01.6]} 3... c5 {[%clk 0:03:00.6]}
4. O-O {[%clk 0:03:01.6]} 4... e6 {[%clk 0:03:01.6]} 5. d3 {[%clk 0:03:02.3]}
5... Nc6 {[%clk 0:03:01.8]} 6. c3 {[%clk 0:03:03.7]} 6... g6 {[%clk 0:02:50.2]}
7. a3 {[%clk 0:03:03.6]} 7... Bg7 {[%clk 0:02:51.2]} 8. b4 {[%clk 0:03:04.6]}
8... Nd7 {[%clk 0:02:50.2]} 9. h4 {[%clk 0:02:57.7]} 9... O-O {[%clk 0:02:48]}
10. h5 {[%clk 0:02:38.7]} 10... cxb4 {[%clk 0:02:44.1]} 11. axb4 {[%clk
0:02:23]} 11... b5 {[%clk 0:02:44.7]} 12. d4 {[%clk 0:02:18.2]} 12... Bb7 {[%clk
0:02:39.9]} 13. Nbd2 {[%clk 0:02:18.9]} 13... a5 {[%clk 0:02:40.2]} 14. hxg6
{[%clk 0:02:13.5]} 14... hxg6 {[%clk 0:02:40.5]} 15. bxa5 {[%clk 0:02:07.4]}
15... Nxa5 {[%clk 0:02:34.7]} 16. Ba3 {[%clk 0:02:09.3]} 16... Re8 {[%clk
0:02:35.5]} 17. Bb4 {[%clk 0:02:06.2]} 17... Nc6 {[%clk 0:02:29.1]} 18. Ba3
{[%clk 0:02:07]} 18... Nb6 {[%clk 0:02:25.8]} 19. Bc5 {[%clk 0:02:04.7]} 19...
Na4 {[%clk 0:02:24.3]} 20. Nb3 {[%clk 0:01:44.8]} 20... Nxc3 {[%clk 0:02:22.3]}
21. Qd2 {[%clk 0:01:44.3]} 21... Ne4 {[%clk 0:02:21.4]} 22. Qf4 {[%clk 0:01:45]}
22... Ra4 {[%clk 0:01:59.8]} 23. Rab1 {[%clk 0:01:13.1]} 23... e5 {[%clk
0:01:40.2]} 24. Qc1 {[%clk 0:00:22.2]} 24... exd4 {[%clk 0:01:36.5]} 25. Rd1
{[%clk 0:00:14]} 25... Rc4 {[%clk 0:01:35.4]} 26. Qa3 {[%clk 0:00:15.6]} 26...
b4 {[%clk 0:01:32.4]} 27. Bxb4 {[%clk 0:00:11.1]} 27... Rxb4 {[%clk 0:01:33.1]}
28. Nbxd4 {[%clk 0:00:10.3]} 28... Rxb1 {[%clk 0:01:31.3]} 29. Rxb1 {[%clk
0:00:12.2]} 29... Nxd4 {[%clk 0:01:32.2]} 30. Rxb7 {[%clk 0:00:13]} 30... Nxe2+
{[%clk 0:01:28.8]} 31. Kf1 {[%clk 0:00:13.3]} 31... Qc8 {[%clk 0:01:18.4]} 32.
Rb1 {[%clk 0:00:09.1]} 32... N2c3 {[%clk 0:01:15.4]} 33. Rc1 {[%clk 0:00:09.2]}
33... Qc4+ {[%clk 0:01:15.7]} 34. Kg1 {[%clk 0:00:09.3]} 34... Ne2+ {[%clk
0:01:16.5]} 0-1

[Event "*** Titled Tuesday Blitz"]
[Site "Chess.com"]
[Date "2018.10.02"]
[Round "3"]
[White "chenrip"]
[Black "ENEASZ"]
[Result "0-1"]
[WhiteElo "2407"]
[BlackElo "2566"]
[TimeControl "180+2"]
[EndTime "13:34:42 PDT"]
[Termination "ENEASZ won by resignation"]

1. e4 {[%clk 0:03:01.9]} 1... d6 {[%clk 0:03:00.7]} 2. d4 {[%clk 0:03:02.6]}
2... Nf6 {[%clk 0:03:01.6]} 3. Nc3 {[%clk 0:03:03.9]} 3... e5 {[%clk 0:03:03]}
4. dxe5 {[%clk 0:03:04.6]} 4... dxe5 {[%clk 0:03:04.9]} 5. Bg5 {[%clk
0:02:59.9]} 5... Be6 {[%clk 0:03:02.4]} 6. Qf3 {[%clk 0:02:56.8]} 6... Nc6
{[%clk 0:02:53.3]} 7. Bb5 {[%clk 0:02:56.2]} 7... Be7 {[%clk 0:02:45.6]} 8. Rd1
{[%clk 0:02:54.1]} 8... Qc8 {[%clk 0:02:43.3]} 9. Nge2 {[%clk 0:02:52.8]} 9...
O-O {[%clk 0:02:43.6]} 10. Bxc6 {[%clk 0:02:53.8]} 10... bxc6 {[%clk 0:02:45.5]}
11. O-O {[%clk 0:02:54.9]} 11... h6 {[%clk 0:02:42.3]} 12. Bxf6 {[%clk
0:02:54.9]} 12... Bxf6 {[%clk 0:02:44.2]} 13. Qg3 {[%clk 0:02:47.4]} 13... Rb8
{[%clk 0:02:37.3]} 14. b3 {[%clk 0:02:48.5]} 14... Qa6 {[%clk 0:02:37]} 15. a4
{[%clk 0:02:48.6]} 15... Qa5 {[%clk 0:02:37.1]} 16. Rd3 {[%clk 0:02:45.7]} 16...
g6 {[%clk 0:02:27.4]} 17. Rfd1 {[%clk 0:02:44.9]} 17... h5 {[%clk 0:02:27]} 18.
h3 {[%clk 0:02:43.3]} 18... Qc5 {[%clk 0:02:25.8]} 19. Qf3 {[%clk 0:02:21.4]}
19... Kg7 {[%clk 0:02:24.9]} 20. Ng3 {[%clk 0:02:14.5]} 20... h4 {[%clk
0:02:24.4]} 21. Nge2 {[%clk 0:02:14.4]} 21... a5 {[%clk 0:02:17.2]} 22. R1d2
{[%clk 0:01:55.6]} 22... Rbd8 {[%clk 0:02:16.5]} 23. Rxd8 {[%clk 0:01:53.1]}
23... Bxd8 {[%clk 0:02:18.4]} 24. Rd3 {[%clk 0:01:36.4]} 24... Bg5 {[%clk
0:02:17.9]} 25. Kh2 {[%clk 0:01:26.9]} 25... Rh8 {[%clk 0:02:10]} 26. Ng1 {[%clk
0:01:19.1]} 26... Bf4+ {[%clk 0:02:02.4]} 27. Kh1 {[%clk 0:01:19.6]} 27... Qa3
{[%clk 0:01:56.5]} 28. Nce2 {[%clk 0:01:19.4]} 28... Bg5 {[%clk 0:01:55.9]} 29.
Rc3 {[%clk 0:01:11]} 29... c5 {[%clk 0:01:40.5]} 30. Kh2 {[%clk 0:00:45.2]}
30... c4 {[%clk 0:01:39.5]} 31. bxc4 {[%clk 0:00:42.6]} 31... Qxa4 {[%clk
0:01:40.2]} 32. c5 {[%clk 0:00:44]} 32... Qb4 {[%clk 0:01:37.7]} 33. c6 {[%clk
0:00:41]} 33... a4 {[%clk 0:01:37.6]} 34. Ra3 {[%clk 0:00:36.2]} 34... Rd8
{[%clk 0:01:32.5]} 35. Qc3 {[%clk 0:00:32.4]} 35... Qxe4 {[%clk 0:01:28.2]} 36.
Nf3 {[%clk 0:00:33.1]} 36... Be7 {[%clk 0:01:18.3]} 37. Ra1 {[%clk 0:00:24.4]}
37... Qxe2 {[%clk 0:01:16.8]} 38. Re1 {[%clk 0:00:19.3]} 38... Qxf2 {[%clk
0:01:18]} 39. Nxe5 {[%clk 0:00:20.2]} 39... Qg3+ {[%clk 0:01:19.3]} 40. Kh1
{[%clk 0:00:20.8]} 40... Qxc3 {[%clk 0:01:19.7]} 0-1

[Event "*** Titled Tuesday Blitz"]
[Site "Chess.com"]
[Date "2018.10.02"]
[Round "3"]
[White "b_6"]
[Black "Kawhi_Leonard2"]
[Result "1-0"]
[WhiteElo "2387"]
[BlackElo "2267"]
[TimeControl "180+2"]
[EndTime "13:34:43 PDT"]
[Termination "b_6 won by resignation"]

1. Nf3 {[%clk 0:03:01.9]} 1... Nf6 {[%clk 0:02:59.8]} 2. g3 {[%clk 0:03:03]}
2... e6 {[%clk 0:03:01]} 3. Bg2 {[%clk 0:03:03.6]} 3... d5 {[%clk 0:03:02.5]} 4.
O-O {[%clk 0:03:04.9]} 4... Be7 {[%clk 0:03:04.1]} 5. c4 {[%clk 0:03:05.3]} 5...
O-O {[%clk 0:03:04.7]} 6. d4 {[%clk 0:03:06.5]} 6... dxc4 {[%clk 0:03:06.1]} 7.
Qc2 {[%clk 0:03:04.9]} 7... a6 {[%clk 0:03:06.8]} 8. a4 {[%clk 0:03:05.7]} 8...
Bd7 {[%clk 0:03:07]} 9. Qxc4 {[%clk 0:03:06.7]} 9... Bc6 {[%clk 0:03:08.3]} 10.
Bf4 {[%clk 0:03:07.9]} 10... a5 {[%clk 0:02:58.6]} 11. Nc3 {[%clk 0:02:56.7]}
11... Na6 {[%clk 0:02:59.6]} 12. Rfe1 {[%clk 0:02:38.4]} 12... Nd5 {[%clk
0:02:50.7]} 13. Bd2 {[%clk 0:02:34.6]} 13... Nxc3 {[%clk 0:02:44.9]} 14. bxc3
{[%clk 0:02:32]} 14... Bd5 {[%clk 0:02:41.9]} 15. Qd3 {[%clk 0:02:29.1]} 15...
b6 {[%clk 0:02:42]} 16. e4 {[%clk 0:02:22.9]} 16... Bb7 {[%clk 0:02:42.8]} 17.
Rab1 {[%clk 0:02:06]} 17... Qe8 {[%clk 0:02:30.7]} 18. Qc2 {[%clk 0:02:03.1]}
18... Bc6 {[%clk 0:02:16.3]} 19. Ra1 {[%clk 0:01:57.4]} 19... Nb8 {[%clk
0:02:13.9]} 20. Ne5 {[%clk 0:01:55.1]} 20... Bb7 {[%clk 0:02:14.7]} 21. c4
{[%clk 0:01:37.7]} 21... Nd7 {[%clk 0:02:15.1]} 22. Nd3 {[%clk 0:01:33.5]} 22...
Rd8 {[%clk 0:02:12.9]} 23. Bf4 {[%clk 0:01:27.5]} 23... Rc8 {[%clk 0:01:49.9]}
24. Rab1 {[%clk 0:01:20.4]} 24... Ba8 {[%clk 0:01:24.5]} 25. Bd2 {[%clk
0:01:03.6]} 25... Qd8 {[%clk 0:01:19.2]} 26. Bc3 {[%clk 0:01:01.2]} 26... Re8
{[%clk 0:01:12.7]} 27. d5 {[%clk 0:00:40.7]} 27... exd5 {[%clk 0:01:12.6]} 28.
exd5 {[%clk 0:00:41.4]} 28... Nc5 {[%clk 0:01:11.4]} 29. Nf4 {[%clk 0:00:36.4]}
29... Qd7 {[%clk 0:01:07.5]} 30. Nh5 {[%clk 0:00:34.6]} 30... Bf8 {[%clk
0:01:08.7]} 31. Be4 {[%clk 0:00:27.3]} 31... Nxe4 {[%clk 0:01:00.5]} 32. Rxe4
{[%clk 0:00:28.3]} 32... Rxe4 {[%clk 0:01:00.7]} 33. Qxe4 {[%clk 0:00:29.2]}
33... Re8 {[%clk 0:00:55.7]} 34. Qd4 {[%clk 0:00:27.7]} 34... Qg4 {[%clk
0:00:41.6]} 35. Qxg4 {[%clk 0:00:25.1]} 1-0